bitfinex/quotes_SOLUSD_20251019
["timestamp","ask_amount","ask_price","bid_price","bid_amount"]
[1760913648785,0.72,190.17,190.13,0.68]
[1760913649192,4.32087221,190.17,190.12,5.25981593]
[1760913649383,4.32087221,190.17,190.12,5.93981593]
[1760913649793,0.72,190.17,190.12,5.93981593]
[1760913649968,4.32087221,190.17,190.12,5.93981593]
[1760913651277,4.32087221,190.16,190.12,5.93981593]
[1760913653174,4.32087221,190.16,190.12,67.73981593]
[1760913653974,3.60087221,190.18,190.12,70.66068814]
[1760913654167,3.60087221,190.15,190.12,61.8]
[1760913654489,0.72,190.16,190.12,62.48]
[1760913654490,3.60087221,190.16,190.12,62.48]
[1760913654680,3.60087221,190.17,190.12,62.48]
[1760913655081,0.72,190.16,190.12,62.48]
[1760913655474,0.72,190.16,190.12,67.73980106]
[1760913655676,0.72,190.16,190.12,71.34067327]
[1760913655994,0.72,190.16,190.12,67.73980106]
[1760913656469,4.32087221,190.16,190.12,67.73980106]
[1760913658081,3.60087221,190.18,190.13,4.28087221]
[1760913658287,4.32087221,190.2,190.15,3.60087221]
[1760913658473,3.60087221,190.2,190.15,4.28087221]
[1760913658679,3.60087221,190.2,190.14,3.60087221]
[1760913658884,4.32087221,190.19,190.13,3.60087221]
[1760913659202,4.32087221,190.19,190.15,5.25900604]
[1760913659381,4.32087221,190.19,190.15,5.93900604]
[1760913659983,3.60087221,190.19,190.15,5.93900604]
[1760913660213,4.32087221,190.19,190.15,5.93900604]
[1760913662199,0.72,190.18,190.14,5.25928263]
[1760913662391,4.32087221,190.18,190.14,5.25928263]
[1760913662592,3.60087221,190.17,190.14,5.25928263]
[1760913662922,4.32087221,190.17,190.14,5.25928263]
[1760913663273,3.60087221,190.18,190.14,5.25928263]
[1760913663475,4.32087221,190.19,190.14,5.93928263]
[1760913663771,4.32087221,190.19,190.15,0.68]
[1760913664284,0.72,190.18,190.15,5.25896645]
[1760913665583,0.72,190.17,190.14,5.25924683]
[1760913665892,4.32087221,190.17,190.14,5.25924683]
[1760913666481,4.32087221,190.17,190.13,5.25955924]
[1760913667794,4.32087221,190.17,190.13,67.05955924]
[1760913668302,4.32087221,190.17,190.13,67.73955924]
[1760913668803,3.60087221,190.17,190.13,67.73955924]
[1760913669105,0.72,190.2,190.15,3.60087221]
[1760913669411,4.32087221,190.2,190.15,62.48]
[1760913670007,3.60087221,190.2,190.15,67.73883878]
[1760913670211,0.72,190.19,190.15,67.73883878]
[1760913670425,4.32087221,190.2,190.15,67.73883878]
[1760913670609,4.32087221,190.2,190.15,67.05883878]
[1760913670909,0.72,190.19,190.15,67.73883878]
[1760913671706,3.60087221,190.16,190.1,22.88]
[1760913671883,3.60087221,190.14,190.1,22.88]
[1760913672191,4.30087221,190.15,190.11,5.26006852]
[1760913674414,3.60087221,190.14,190.11,5.26006852]
[1760913674703,3.60087221,190.12,190.09,5.260393]
[1760913675083,4.26087221,190.12,190.09,5.260393]
[1760913675283,4.26087221,190.12,190.07,5.94103549]
[1760913675690,4.26087221,190.12,190.08,0.68]
[1760913675994,3.60087221,190.13,190.08,4.28087221]
[1760913676200,4.26087221,190.13,190.08,4.28087221]
[1760913676683,4.26087221,190.13,190.09,5.940666]
[1760913676885,3.60087221,190.13,190.09,5.260666]
[1760913677102,4.26087221,190.15,190.1,0.68]
[1760913678005,3.60087221,190.15,190.1,5.94029783]
[1760913678505,0.66,190.14,190.1,5.94029783]
[1760913679108,3.60087221,190.15,190.1,5.94029783]
[1760913679408,3.60087221,190.15,190.11,0.68]
[1760913680910,4.26087221,190.15,190.11,0.68]
[1760913681588,4.26087221,190.15,190.11,5.94011141]
[1760913682112,4.26087221,190.15,190.11,5.26011141]
[1760913682801,0.66,190.14,190.11,5.26011141]
[1760913683306,0.66,190.14,190.11,8.86098362]
[1760913683811,0.66,190.14,190.11,5.26011141]
[1760913684015,3.60087221,190.15,190.11,5.26011141]
[1760913684192,4.26087221,190.15,190.11,5.26011141]
[1760913687211,3.60087221,190.16,190.12,0.68]
[1760913687513,9.51904867,190.18,190.13,0.68]
[1760913687710,0.66,190.17,190.13,0.68]
[1760913688095,0.66,190.2,190.14,4.28087221]
[1760913688290,0.66,190.22,190.15,0.68]
[1760913688522,4.26087221,190.22,190.17,3.60087221]
[1760913688725,2.96309591,190.22,190.17,2.98309591]
[1760913688923,2.96309591,190.21,190.15,23.56]
[1760913689099,2.30309591,190.16,190.12,61.8]
[1760913689414,5.25833207,190.18,190.09,37.38]
[1760913689415,2.30309591,190.13,190.09,36.7]
[1760913689617,0.66,190.12,190.07,2.30309591]
[1760913690019,2.96309591,190.11,190.06,60.26]
[1760913690202,2.30309591,190.11,190.06,67.82456516]
[1760913690403,2.96309591,190.11,190.06,67.82456516]
[1760913691021,2.30309591,190.12,190.07,0.68]
[1760913691206,2.96309591,190.12,190.08,5.26094276]
[1760913691696,2.96309591,190.12,190.08,5.94094276]
[1760913692093,2.30309591,190.12,190.08,5.26094276]
[1760913692304,0.66,190.11,190.08,5.26094276]
[1760913692521,2.96309591,190.12,190.08,5.26094276]
[1760913693821,2.96309591,190.12,190.08,5.94094276]
[1760913694612,2.96309591,190.12,190.08,5.26094276]
[1760913696117,0.66,190.11,190.08,5.26094276]
[1760913697116,0.66,190.11,190.08,67.06094276]
[1760913697824,2.30309591,190.12,190.08,67.06094276]
[1760913698005,2.96309591,190.12,190.08,67.06094276]
[1760913699222,2.96309591,190.12,190.08,67.74094276]
[1760913699400,2.96309591,190.12,190.08,67.06094276]
[1760913699599,0.66,190.11,190.08,67.06094276]
[1760913699803,2.30309591,190.11,190.08,67.06094069]
[1760913699997,2.30309591,190.1,190.08,61.8]
[1760913700431,2.96309591,190.1,190.08,61.8]
[1760913701407,2.30309591,190.1,190.08,61.8]
[1760913702014,2.96309591,190.11,190.08,61.8]
[1760913702937,2.96309591,190.11,190.07,67.06121182]
[1760913703122,0.66,190.11,190.07,67.06121182]
[1760913703314,2.96309591,190.11,190.07,67.06121182]
[1760913703512,0.66,190.11,190.07,67.74121182]
[1760913703711,2.96309591,190.11,190.07,67.74121182]
[1760913705636,0.7,190.11,190.07,67.72121182]
[1760913705932,2.30309591,190.11,190.07,67.06121182]
[1760913706111,2.30309591,190.11,190.08,0.66]
[1760913706523,3.00309591,190.11,190.07,67.72121182]
[1760913706908,2.30309591,190.11,190.08,0.66]
[1760913707730,3.00309591,190.11,190.07,67.72121182]
[1760913707914,2.30309591,190.11,190.07,67.72121182]
[1760913708225,3.00309591,190.11,190.07,67.72121182]
[1760913712034,2.30309591,190.11,190.08,5.92083677]
[1760913712324,2.30309591,190.11,190.09,0.66]
[1760913712535,2.30309591,190.11,190.08,5.92083677]
[1760913713811,0.7,190.11,190.07,67.06121412]
[1760913714018,2.30309591,190.1,190.07,67.72121412]
[1760913714528,3.00309591,190.1,190.07,67.06121412]
[1760913715929,2.30309591,190.08,190.07,61.8]
[1760913716237,3.00309591,190.08,190.06,61.8]
[1760913717129,3.00309591,190.07,190.06,61.8]
[1760913718042,5.96127751,190.07,190.04,61.8]
[1760913718215,0.7,190.06,190.04,61.8]
[1760913718414,0.7,190.05,190.04,61.8]
[1760913718626,5.26127751,190.07,190.04,61.8]
[1760913718831,0.7,190.07,190.04,61.8]
[1760913719434,0.7,190.06,190.04,61.8]
[1760913719658,0.7,190.05,190.04,61.8]
[1760913722130,13.15257657,190.08,190.04,61.8]
[1760913722131,0.7,190.08,190.04,61.8]
[1760913722334,2.30309591,190.05,190.04,61.8]
[1760913722850,3.00309591,190.05,190.04,61.8]
[1760913723411,3.00309591,190.05,190.02,0.2]
[1760913723614,2.30309591,190.04,190.02,0.2]
[1760913724138,0.7,190.05,190.02,0.2]
[1760913727840,13.15317923,190.07,190.02,0.2]
[1760913728138,5.96162371,190.06,190.02,0.2]
[1760913733444,5.260666,190.09,190.02,0.2]
[1760913733647,0.68,190.05,190.02,0.2]
[1760913733831,18.412331,190.09,190.02,0.2]
[1760913734032,0.67,190.08,190.02,0.2]
[1760913735541,5.26121955,190.07,190.02,0.2]
[1760913735747,0.67,190.06,190.02,0.2]
[1760913736138,2.30309591,190.07,190.03,0.68]
[1760913736446,2.30309591,190.07,190.04,0.68]
[1760913736954,0.67,190.09,190.04,0.68]
[1760913737128,2.97309591,190.09,190.04,0.68]
[1760913737446,2.97309591,190.09,190.04,5.94199924]
[1760913737635,2.30309591,190.09,190.04,5.94199924]
[1760913737963,0.67,190.08,190.04,5.94199924]
[1760913739157,0.67,190.12,190.05,0.68]
[1760913739453,2.97309591,190.12,190.06,2.30309591]
[1760913739626,2.97309591,190.12,190.06,64.78309591]
[1760913739949,2.97309591,190.12,190.07,0.68]
[1760913740155,2.97309591,190.12,190.08,0.68]
[1760913740330,0.67,190.12,190.08,0.68]
[1760913740738,0.67,190.11,190.07,64.10309591]
[1760913740935,0.67,190.11,190.08,5.26094276]
[1760913743931,2.97309591,190.1,190.07,61.8]
[1760913744130,2.97309591,190.09,190.07,61.8]
[1760913744433,2.97309591,190.08,190.07,61.8]
[1760913744639,2.97309591,190.08,190.04,67.06180078]
[1760913744836,0.67,190.07,190.04,67.06180078]
[1760913745851,2.30309591,190.08,190.04,67.06180078]
[1760913746034,2.30309591,190.09,190.05,0.68]
[1760913746625,0.67,190.08,190.04,67.06180078]
[1760913746826,0.67,190.07,190.04,67.06180078]
[1760913747452,0.67,190.06,190.04,67.06180078]
[1760913747656,2.30309591,190.08,190.04,67.06180078]
[1760913747978,0.67,190.07,190.04,67.06180078]
[1760913749450,2.30309591,190.08,190.04,67.74180078]
[1760913749645,2.97309591,190.08,190.04,67.74180078]
[1760913749836,2.97309591,190.08,190.04,5.94180078]
[1760913750847,4.27403536,190.08,190.04,5.94180078]
[1760913751146,3.60403536,190.09,190.05,0.68]
[1760913751464,9.53444657,190.1,190.05,0.68]
[1760913751757,0.67,190.09,190.05,0.68]
[1760913752457,0.67,190.09,190.04,5.26180078]
[1760913752458,4.27403536,190.08,190.04,5.26180078]
[1760913752643,0.67,190.07,190.04,5.26180078]
[1760913753041,3.60403536,190.08,190.04,5.26180078]
[1760913753249,4.27403536,190.08,190.04,5.94180078]
[1760913754661,3.60403536,190.09,190.05,0.68]
[1760913754851,3.60403536,190.1,190.04,8.86583614]
[1760913755039,0.67,190.1,190.04,8.86583614]
[1760913755245,4.27403536,190.1,190.05,0.68]
[1760913755439,0.67,190.09,190.05,0.68]
[1760913755663,0.67,190.09,190.05,67.74169789]
[1760913758963,3.60403536,190.1,190.06,0.68]
[1760913759160,4.27403536,190.1,190.06,0.68]
[1760913760161,3.60403536,190.09,190.06,0.68]
[1760913760485,3.60403536,190.09,190.05,67.74169789]
[1760913760669,4.27403536,190.09,190.05,67.74169789]
[1760913761576,3.60403536,190.09,190.05,67.06169789]
[1760913761868,4.27403536,190.08,190.05,67.06169789]
[1760913763065,5.26008991,190.12,190.06,0.68]
[1760913763262,3.60403536,190.1,190.06,0.68]
[1760913763649,4.27403536,190.1,190.06,0.68]
[1760913763955,4.27403536,190.11,190.07,0.68]
[1760913764268,4.27403536,190.11,190.06,5.94139658]
[1760913764470,28.96568897,190.16,190.07,0.68]
[1760913764677,3.60403536,190.14,190.08,3.60403536]
[1760913764851,3.60403536,190.14,190.09,0.68]
[1760913765165,4.31403536,190.14,190.1,0.68]
[1760913766269,4.31403536,190.14,190.09,5.94047558]
[1760913766667,0.71,190.13,190.09,5.94047558]
[1760913769272,4.31403536,190.14,190.09,5.94047558]
[1760913769459,0.71,190.13,190.09,5.94047558]
[1760913769660,0.71,190.12,190.09,5.26047558]
[1760913769872,3.60403536,190.13,190.09,67.74047558]
[1760913770072,0.71,190.13,190.09,67.74047558]
[1760913770254,0.71,190.15,190.09,67.06047558]
[1760913770453,4.31403536,190.14,190.09,67.06047558]
[1760913770661,0.71,190.13,190.09,67.06047558]
[1760913770856,3.60403536,190.14,190.09,67.06047558]
[1760913771073,3.60403536,190.13,190.09,67.74047558]
[1760913771273,4.31403536,190.13,190.09,67.74047558]
[1760913771679,3.60403536,190.13,190.09,67.06047558]
[1760913771968,3.60403536,190.11,190.09,61.8]
[1760913772173,4.31403536,190.1,190.09,61.8]
[1760913772877,0.71,190.1,190.09,61.8]
[1760913773072,3.60403536,190.11,190.09,61.8]
[1760913773270,5.2597789,190.13,190.08,5.26093912]
[1760913773271,3.60403536,190.12,190.08,5.26093912]
[1760913773453,4.31403536,190.12,190.08,5.94093912]
[1760913773966,4.31403536,190.12,190.08,0.68]
[1760913774163,4.31403536,190.11,190.07,67.06120582]
[1760913774373,4.31403536,190.1,190.07,61.8]
[1760913774564,0.71,190.1,190.07,61.8]
[1760913774769,4.31403536,190.1,190.07,61.8]
[1760913776188,3.60403536,190.11,190.07,67.06119202]
[1760913776479,4.31403536,190.11,190.07,67.74119202]
[1760913776880,0.71,190.11,190.07,67.74119202]
[1760913777070,3.60403536,190.11,190.07,67.74119202]
[1760913777680,4.31403536,190.11,190.07,67.74119202]
[1760913778180,3.60403536,190.11,190.07,67.06119202]
[1760913778384,0.71,190.1,190.07,67.06119202]
[1760913779165,4.31403536,190.1,190.07,67.06119202]
[1760913780387,4.31403536,190.1,190.07,61.8]
[1760913780683,4.31403536,190.09,190.07,61.8]
[1760913780880,4.31403536,190.08,190.07,61.8]
[1760913781092,4.31403536,190.08,190.03,64.822327]
[1760913781388,4.31403536,190.08,190.03,130.90636236]
[1760913781589,4.31403536,190.08,190.04,0.68]
[1760913781786,18.4088191,190.13,190.03,130.22636236]
[1760913781787,4.31403536,190.07,190.03,126.622327]
[1760913781985,3.60403536,190.05,190.02,62.0]
[1760913782169,3.60403536,190.05,190.02,98.68]
[1760913782369,4.31403536,190.06,190.02,99.36]
[1760913782570,3.60403536,190.06,190.03,0.68]
[1760913782771,3.60403536,190.07,190.03,0.68]
[1760913782971,0.71,190.07,190.03,0.68]
[1760913783192,4.31403536,190.07,190.03,0.68]
[1760913783390,0.71,190.1,190.04,0.68]
[1760913783692,0.71,190.1,190.04,66.08403536]
[1760913783693,3.60403536,190.09,190.04,66.08403536]
[1760913783892,4.31403536,190.1,190.05,0.68]
[1760913784070,0.71,190.1,190.06,0.68]
[1760913784385,4.31403536,190.1,190.06,0.68]
[1760913784595,5.25986695,190.12,190.04,65.40403536]
[1760913784773,3.60403536,190.11,190.06,0.68]
[1760913784969,4.31403536,190.11,190.06,0.68]
[1760913785168,5.25986695,190.12,190.06,5.26122024]
[1760913785486,4.31403536,190.13,190.07,4.28403536]
[1760913785875,4.31403536,190.12,190.06,67.74122024]
[1760913786075,0.71,190.12,190.06,71.3452556]
[1760913786270,4.31403536,190.12,190.07,0.68]
[1760913786986,0.71,190.11,190.06,70.66549736]
[1760913787183,0.71,190.1,190.06,67.741462]
[1760913787985,3.60403536,190.11,190.06,67.061462]
[1760913788290,0.71,190.1,190.06,67.741462]
[1760913789885,3.60403536,190.11,190.06,67.061462]
[1760913790089,4.31403536,190.1,190.06,67.061462]
[1760913790397,4.31403536,190.1,190.06,67.741462]
[1760913790773,4.31403536,190.09,190.06,61.8]
[1760913790978,0.71,190.08,190.06,61.8]
[1760913791283,0.71,190.07,190.06,61.8]
[1760913791599,3.60403536,190.09,190.06,61.8]
[1760913791893,0.7,190.08,190.06,61.8]
[1760913792095,3.60403536,190.09,190.06,61.8]
[1760913792294,4.30403536,190.09,190.06,61.8]
[1760913793595,4.30403536,190.08,190.06,61.8]
[1760913793801,4.30403536,190.07,190.06,61.8]
[1760913795285,9.5747017,190.09,190.06,61.8]
[1760913795489,0.71,190.08,190.06,61.8]
[1760913796298,8.8647017,190.09,190.06,61.8]
[1760913796491,9.5747017,190.09,190.06,61.8]
[1760913796685,5.97066634,190.09,190.04,67.72204574]
[1760913796891,9.5747017,190.09,190.04,67.72204574]
[1760913797405,9.5747017,190.09,190.04,67.06204574]
[1760913797604,9.5747017,190.09,190.04,67.72204574]
[1760913799201,3.60403536,190.08,190.04,67.72204574]
[1760913800397,3.60403536,190.08,190.05,0.66]
[1760913800990,4.31403536,190.09,190.05,0.66]
[1760913801194,3.60403536,190.09,190.05,0.66]
[1760913801517,0.71,190.08,190.04,67.06204574]
[1760913801693,0.71,190.08,190.04,67.72204574]
[1760913801893,4.31403536,190.08,190.04,67.72204574]
[1760913804717,0.71,190.08,190.04,67.72204574]
[1760913807724,4.31403536,190.08,190.04,67.72204574]
[1760913809014,5.26075439,190.09,190.05,0.66]
[1760913809218,0.71,190.08,190.04,67.06198289]
[1760913809396,4.31403536,190.08,190.04,67.72198289]
[1760913810129,0.71,190.08,190.04,67.72198289]
[1760913810303,4.31403536,190.08,190.04,67.72198289]
[1760913811616,4.31403536,190.07,190.04,67.72198289]
[1760913811813,0.71,190.06,190.04,61.8]
[1760913812408,4.31403536,190.07,190.04,61.8]
[1760913812815,3.01684347,190.07,190.04,67.72201834]
[1760913813013,0.71,190.07,190.04,67.72201834]
[1760913813326,3.01684347,190.08,190.04,67.72201834]
[1760913814119,3.01684347,190.07,190.03,103.722295]
[1760913814342,3.01684347,190.06,190.03,61.8]
[1760913814624,2.30684347,190.05,190.03,61.8]
[1760913815714,3.01684347,190.06,190.03,61.8]
[1760913816045,0.71,190.06,190.03,61.8]
[1760913816627,3.01684347,190.07,190.03,67.72232341]
[1760913817033,0.71,190.06,190.03,67.06232341]
[1760913817236,2.30684347,190.04,190.02,62.0]
[1760913817524,2.30684347,190.05,190.02,62.66]
[1760913817725,2.30684347,190.06,190.02,62.66]
[1760913817903,3.01684347,190.06,190.02,62.66]
[1760913818104,2.30684347,190.05,190.02,62.66]
[1760913818313,3.01684347,190.05,190.02,0.2]
[1760913819819,3.01684347,190.04,190.02,0.2]
[1760913820228,2.30684347,190.04,190.02,0.2]
[1760913820723,3.01684347,190.05,190.02,0.2]
[1760913821329,2.30684347,190.05,190.02,0.2]
[1760913821623,0.71,190.04,190.02,0.2]
[1760913823009,2.30684347,190.05,190.02,0.2]
[1760913823215,0.71,190.04,190.02,0.2]
[1760913823825,2.30684347,190.06,190.02,6.1225954]
[1760913824120,2.30684347,190.06,190.02,5.4625954]
[1760913824327,3.02684347,190.06,190.02,6.1425954]
[1760913825015,2.30684347,190.06,190.02,5.4625954]
[1760913825217,2.30684347,190.06,190.03,0.68]
[1760913825429,3.02684347,190.07,190.03,0.68]
[1760913825924,3.02684347,190.06,190.02,5.4625954]
[1760913826126,3.02684347,190.06,190.02,6.1425954]
[1760913826634,0.72,190.05,190.02,0.2]
[1760913826928,2.30684347,190.03,190.02,0.2]
[1760913827114,2.30684347,190.04,190.02,0.2]
[1760913827425,3.02684347,190.04,190.02,0.2]
[1760913828129,2.30684347,190.03,190.02,0.2]
[1760913829530,3.02684347,190.04,190.02,0.2]
[1760913829714,2.30684347,190.03,190.02,0.2]
[1760913831035,3.02684347,190.03,190.02,0.2]
[1760913832924,8.28917047,190.03,190.02,0.2]
[1760913834337,3.02684347,190.03,190.02,0.2]
[1760913838052,2.30684347,190.03,190.02,0.2]
[1760913838539,3.02684347,190.03,190.02,0.2]
[1760913838944,2.30684347,190.03,190.02,0.2]
[1760913839128,3.02684347,190.03,190.02,0.2]
[1760913845931,8.28917047,190.03,190.02,0.2]
[1760913850538,5.982327,190.03,190.02,0.2]
[1760913850747,8.28917047,190.03,190.02,0.2]
[1760913854550,0.72,190.03,190.02,0.2]
[1760913855222,3.02684347,190.03,190.02,0.2]
[1760913856839,5.2620727,190.04,190.02,0.2]
[1760913857448,5.9720727,190.04,190.02,0.2]
[1760913857752,8.27891617,190.04,190.02,0.2]
[1760913858550,5.26171194,190.06,190.02,0.2]
[1760913858760,46.90872799,190.09,190.02,0.88]
[1760913858930,2.30684347,190.04,190.02,0.2]
[1760913859628,3.01684347,190.05,190.02,0.2]
[1760913859829,2.30684347,190.04,190.02,0.2]
[1760913860566,3.01684347,190.04,190.02,0.2]
[1760913860854,2.30684347,190.04,190.02,0.2]
[1760913861054,0.71,190.03,190.02,0.2]
[1760913862139,2.30684347,190.04,190.02,0.2]
[1760913862558,8.27877457,190.05,190.02,0.2]
[1760913864357,7.56877457,190.05,190.02,0.2]
[1760913864556,0.71,190.04,190.02,0.2]
[1760913866261,7.56877457,190.05,190.02,0.2]
[1760913866557,3.01684347,190.04,190.02,0.2]
[1760913867644,0.71,190.04,190.02,0.2]
[1760913869757,0.71,190.07,190.03,0.68]
[1760913869964,0.71,190.1,190.05,2.30684347]
[1760913870259,0.71,190.09,190.05,2.98684347]
[1760913870934,0.71,190.09,190.05,8.24858186]
[1760913872370,0.71,190.09,190.06,0.68]
[1760913872962,0.71,190.09,190.05,7.56858186]
[1760913873146,0.71,190.09,190.05,8.24858186]
[1760913874452,0.71,190.09,190.05,7.56858186]
[1760913874654,0.71,190.09,190.06,0.68]
[1760913875565,0.71,190.09,190.05,8.86489222]
[1760913875751,0.71,190.09,190.05,9.54489222]
[1760913876066,0.71,190.09,190.05,5.94173839]
[1760913876359,0.71,190.08,190.04,8.86520392]
[1760913876566,0.71,190.08,190.05,0.68]
[1760913877854,0.71,190.08,190.05,5.94175227]
[1760913880270,4.31315383,190.1,190.05,5.94175227]
[1760913880468,0.71,190.09,190.05,5.94175227]
[1760913880967,0.71,190.09,190.05,9.5449061]
[1760913881964,3.60315383,190.1,190.06,5.94141096]
[1760913882165,4.31315383,190.1,190.06,5.94141096]
[1760913882367,3.60315383,190.1,190.06,5.26141096]
[1760913882564,0.71,190.09,190.06,5.26141096]
[1760913883673,5.26015085,190.11,190.05,5.2615222]
[1760913883875,0.71,190.1,190.05,9.54467603]
[1760913884060,4.32315383,190.09,190.05,5.9415222]
[1760913884260,0.72,190.09,190.04,103.68192632]
[1760913884462,4.32315383,190.08,190.05,0.68]
[1760913884677,4.32315383,190.08,190.04,104.36192632]
[1760913885458,4.32315383,190.08,190.04,103.68192632]
[1760913885681,4.32315383,190.08,190.04,104.36192632]
[1760913886280,0.72,190.08,190.04,104.36192632]
[1760913886461,0.72,190.08,190.05,5.94157363]
[1760913887172,4.32315383,190.09,190.05,5.94157363]
[1760913888281,0.72,190.09,190.05,5.94157363]
[1760913888780,0.72,190.09,190.05,9.54472746]
[1760913889581,0.72,190.13,190.07,3.60315383]
[1760913889785,9.58330638,190.15,190.09,3.60315383]
[1760913890086,4.32315383,190.15,190.1,0.68]
[1760913890386,4.32315383,190.14,190.1,0.68]
[1760913890970,0.72,190.13,190.1,0.68]
[1760913891489,0.72,190.13,190.1,5.94022075]
[1760913891863,0.72,190.13,190.1,5.26022075]
[1760913894392,0.72,190.13,190.1,5.94022075]
[1760913894776,0.72,190.13,190.1,5.26022075]
[1760913895967,3.60315383,190.14,190.1,5.26022075]
[1760913896171,3.60315383,190.12,190.09,41.88064748]
[1760913896374,4.32315383,190.12,190.09,41.88064748]
[1760913897264,0.72,190.14,190.09,41.88064748]
[1760913897468,4.32315383,190.13,190.09,41.88064748]
[1760913897874,0.72,190.12,190.09,5.26064748]
[1760913899097,4.32315383,190.11,190.08,98.4]
[1760913899276,18.40652115,190.15,190.08,42.54093644]
[1760913899473,3.60315383,190.13,190.08,42.54093644]
[1760913899671,4.32315383,190.12,190.08,42.54093644]
[1760913900791,4.32315383,190.11,190.08,5.26093644]
[1760913900982,0.72,190.1,190.08,5.26093644]
[1760913901299,4.32315383,190.12,190.08,5.94093644]
[1760913901873,0.72,190.11,190.08,5.94093644]
[1760913902204,4.32315383,190.12,190.08,5.26093644]
[1760913902381,4.32315383,190.11,190.08,5.26093644]
[1760913903396,4.32315383,190.11,190.08,5.94093644]
[1760913903902,3.60315383,190.12,190.08,5.94093644]
[1760913904079,4.32315383,190.12,190.08,5.94093644]
[1760913905700,0.72,190.12,190.08,5.94093644]
[1760913905887,3.60315383,190.12,190.08,5.94093644]
[1760913906081,4.32315383,190.12,190.08,5.94093644]
[1760913907300,0.72,190.12,190.08,5.94093644]
[1760913912380,0.72,190.12,190.08,42.54093644]
[1760913913399,0.72,190.12,190.08,41.86093644]
[1760913913578,0.72,190.12,190.08,42.54093644]
[1760913913977,0.72,190.12,190.08,46.14409027]
[1760913914176,0.72,190.12,190.08,41.86093644]
[1760913914410,0.72,190.12,190.09,0.66]
[1760913914794,0.71,190.13,190.09,0.66]
[1760913914986,4.31315383,190.13,190.09,0.66]
[1760913915194,0.71,190.12,190.09,5.92064067]
[1760913915385,0.71,190.12,190.09,5.26064067]
[1760913915991,4.31315383,190.12,190.09,5.26064067]
[1760913917105,0.71,190.12,190.09,5.92064067]
[1760913917293,0.71,190.12,190.09,5.26064067]
[1760913917898,3.60315383,190.13,190.09,5.26064067]
[1760913918120,4.31315383,190.12,190.09,5.26064067]
[1760913918606,3.60315383,190.1,190.03,0.66]
[1760913918789,3.60315383,190.05,190.02,0.2]
[1760913918996,4.31315383,190.04,190.02,0.2]
[1760913919203,0.71,190.07,190.03,0.66]
[1760913919381,4.31315383,190.06,190.02,42.72258658]
[1760913920090,4.31315383,190.08,190.03,4.26315383]
[1760913920311,4.31315383,190.08,190.04,0.66]
[1760913920724,4.31315383,190.08,190.04,5.92197826]
[1760913922300,4.31315383,190.07,190.04,5.26197826]
[1760913922508,4.31315383,190.06,190.03,36.6]
[1760913922805,3.60315383,190.04,190.02,0.2]
[1760913923211,3.60315383,190.06,190.02,6.12255086]
[1760913923402,0.71,190.06,190.02,6.12255086]
[1760913923604,0.71,190.05,190.02,5.46255086]
[1760913923912,4.31315383,190.05,190.02,5.46255086]
[1760913924111,3.60315383,190.1,190.02,5.46255086]
[1760913924311,4.31315383,190.05,190.02,5.46255086]
[1760913925015,3.60315383,190.07,190.03,0.66]
[1760913925315,4.31315383,190.07,190.03,0.66]
[1760913925491,0.71,190.06,190.02,5.46255086]
[1760913925813,0.71,190.06,190.02,6.12255086]
[1760913927403,5.97079185,190.09,190.03,0.66]
[1760913927615,9.57394568,190.09,190.03,66.06315383]
[1760913927808,9.57394568,190.09,190.04,0.66]
[1760913928016,0.71,190.08,190.04,0.66]
[1760913929315,4.31315383,190.12,190.06,3.60315383]
[1760913929616,4.31315383,190.11,190.06,4.26315383]
[1760913929802,0.71,190.11,190.06,0.66]
[1760913930005,4.31315383,190.11,190.06,4.26315383]
[1760913930190,4.31315383,190.1,190.06,0.66]
[1760913930396,4.31315383,190.09,190.04,121.08026457]
[1760913930606,0.71,190.08,190.04,120.42026457]
[1760913930919,0.71,190.08,190.04,117.47711074]
[1760913931512,0.71,190.08,190.04,121.08026457]